bitfinex-derivatives/quotes_SOLF0:USTF0_20260306
["timestamp","ask_amount","ask_price","bid_price","bid_amount"]
[1772771636953,10.1197003,88.459,88.411,5.21883828]
[1772771637253,2.97868884,88.46,88.411,5.21883828]
[1772771637554,2.97868884,88.47,88.414,5.21883828]
[1772771637754,8.92119282,88.469,88.421,5.21883828]
[1772771637955,8.92119282,88.468,88.421,5.21883828]
[1772771638154,8.92119282,88.469,88.421,5.21883828]
[1772771638351,2.97868884,88.47,88.421,5.21883828]
[1772771638954,11.89988166,88.47,88.421,5.21883828]
[1772771639254,2.97868884,88.47,88.421,5.21883828]
[1772771639653,2.97868884,88.47,88.423,5.2001692]
[1772771640351,19.03167299,88.476,88.354,20.371]
[1772771640352,2.97868884,88.45,88.409,5.24889289]
[1772771640656,2.97868884,88.44,88.391,5.24889289]
[1772771641355,2.97868884,88.44,88.4,10.18]
[1772771641558,2.97868884,88.44,88.401,5.24889289]
[1772771641754,10.173,88.459,88.401,5.24889289]
[1772771641755,2.97868884,88.45,88.401,5.24889289]
[1772771642055,2.97868884,88.44,88.401,5.24889289]
[1772771642553,2.97868884,88.45,88.405,5.3642334]
[1772771642952,2.97868884,88.45,88.406,10.179]
[1772771643146,2.97868884,88.45,88.407,5.3642334]
[1772771643352,2.97868884,88.45,88.356,158.44]
[1772771643353,2.97868884,88.48,88.421,5.3642334]
[1772771643553,2.97868884,88.48,88.431,5.3642334]
[1772771643756,2.97868884,88.49,88.441,5.3642334]
[1772771644455,2.97868884,88.49,88.443,5.36326653]
[1772771645858,2.97868884,88.49,88.379,20.365]
[1772771645859,2.97868884,88.48,88.43,5.36326653]
[1772771646160,2.97868884,88.48,88.431,5.36902246]
[1772771646463,2.97868884,88.49,88.431,5.36902246]
[1772771646955,2.97868884,88.49,88.442,10.175]
[1772771647456,2.97868884,88.48,88.433,10.176]
[1772771647664,2.97868884,88.47,88.434,5.36902246]
[1772771648362,2.97868884,88.48,88.434,5.36902246]
[1772771649455,2.97868884,88.48,88.435,5.38756893]
[1772771651262,2.97868884,88.48,88.437,5.38786523]
[1772771651461,2.97868884,88.5,88.441,5.38786523]
[1772771652160,14.03483131,88.538,88.406,20.359]
[1772771652161,2.97868884,88.51,88.458,5.38830758]
[1772771653261,2.97868884,88.52,88.461,5.38830758]
[1772771653764,2.97868884,88.52,88.471,5.38830758]
[1772771653965,2.97868884,88.53,88.481,5.38830758]
[1772771654569,2.97868884,88.54,88.482,5.38579189]
[1772771655067,10.10321941,88.572,88.507,5.38579189]
[1772771655363,2.97868884,88.54,88.491,5.38579189]
[1772771656165,2.97868884,88.56,88.502,5.38579189]
[1772771657266,2.97868884,88.55,88.502,5.38579189]
[1772771657469,2.97868884,88.55,88.505,10.168]
[1772771657672,2.97868884,88.55,88.505,15.58442557]
[1772771657864,2.97868884,88.55,88.506,5.41642557]
[1772771658269,2.97868884,88.54,88.495,10.169]
[1772771658469,2.97868884,88.53,88.492,5.43121547]
[1772771658965,2.97868884,88.53,88.493,10.169]
[1772771659169,2.97868884,88.54,88.494,5.43121547]
[1772771659769,1.96563527,88.593,88.497,5.43121547]
[1772771659770,2.97868884,88.53,88.497,5.43121547]
[1772771659970,2.97868884,88.53,88.481,5.43121547]
[1772771660270,2.97868884,88.52,88.481,5.43121547]
[1772771661469,2.97868884,88.51,88.461,5.45786512]
[1772771662373,18.85813162,88.571,88.383,158.393]
[1772771662374,2.97868884,88.49,88.446,5.53305077]
[1772771662574,2.97868884,88.48,88.446,5.53305077]
[1772771663071,2.97868884,88.49,88.446,5.53305077]
[1772771663971,2.97868884,88.49,88.447,15.70805077]
[1772771667377,2.97868884,88.48,88.435,10.176]
[1772771668670,10.49435978,88.535,88.418,5.48322771]
[1772771668671,2.97868884,88.46,88.418,5.48322771]
[1772771669869,2.97868884,88.47,88.418,5.48322771]
[1772771670477,2.97868884,88.47,88.42,5.41869107]
[1772771672281,2.97868884,88.46,88.409,10.179]
[1772771672477,2.97868884,88.46,88.409,5.40241966]
[1772771673479,2.97868884,88.45,88.409,5.40241966]
[1772771674178,2.97868884,88.44,88.396,5.40241966]
[1772771676578,2.97868884,88.47,88.411,5.39980448]
[1772771677382,10.172,88.466,88.415,10.178]
[1772771677679,10.172,88.466,88.416,5.39980448]
[1772771678984,2.97868884,88.46,88.416,5.39980448]
[1772771679182,10.172,88.466,88.416,5.39980448]
[1772771680172,2.97868884,88.46,88.416,5.39980448]
[1772771681885,2.97868884,88.49,88.431,5.39437099]
[1772771682086,2.97868884,88.49,88.441,5.39437099]
[1772771682384,2.97868884,88.49,88.445,5.39474231]
[1772771682584,10.169,88.497,88.445,5.39474231]
[1772771683188,10.17,88.489,88.445,5.39474231]
[1772771683376,2.97868884,88.49,88.445,5.39474231]
[1772771683581,20.84036518,88.537,88.389,158.381]
[1772771683582,2.97868884,88.53,88.48,8.37343115]
[1772771684081,2.97868884,88.53,88.48,5.39474231]
[1772771684485,2.97868884,88.52,88.46,5.54179001]
[1772771684785,2.97868884,88.5,88.46,5.54179001]
[1772771684985,2.97868884,88.51,88.46,5.54179001]
[1772771685286,10.168,88.506,88.46,5.54179001]
[1772771686580,10.169,88.498,88.46,5.54179001]
[1772771687985,2.97169548,88.51,88.46,5.54179001]
[1772771687986,10.168,88.507,88.46,5.54179001]
[1772771688183,8.85424032,88.519,88.461,5.52793804]
[1772771688380,8.85424032,88.519,88.415,20.357]
[1772771688381,2.97169548,88.52,88.47,8.49963352]
[1772771688582,2.97169548,88.52,88.47,5.52793804]
[1772771688883,10.167,88.517,88.47,5.52793804]
[1772771689785,2.97169548,88.52,88.476,5.52793804]
[1772771689981,2.97169548,88.55,88.491,5.52793804]
[1772771690791,10.164,88.541,88.491,5.52793804]
[1772771690986,2.97169548,88.53,88.48,2.97169548]
[1772771691291,2.97169548,88.53,88.477,5.52882679]
[1772771692085,2.97169548,88.53,88.48,2.97169548]
[1772771692390,10.166,88.526,88.48,2.97169548]
[1772771692892,10.166,88.526,88.477,5.52882679]
[1772771695594,10.167,88.515,88.461,5.51462667]
[1772771695894,2.97169548,88.52,88.461,5.51462667]
[1772771697291,2.97169548,88.51,88.45,2.97169548]
[1772771698095,2.97169548,88.51,88.451,5.51159725]
[1772771698393,10.169,88.498,88.451,5.51159725]
[1772771702287,10.168,88.507,88.461,5.51595211]
[1772771704296,8.8673516,88.506,88.461,5.51595211]
[1772771704497,8.8673516,88.505,88.461,5.51595211]
[1772771704692,8.8673516,88.506,88.461,5.51595211]
[1772771704897,10.168,88.504,88.461,5.51595211]
[1772771705196,8.8673516,88.503,88.461,5.51595211]
[1772771705999,10.168,88.502,88.461,5.51595211]
[1772771706896,8.8673516,88.505,88.461,5.51595211]
[1772771707096,8.88241285,88.51,88.461,5.51595211]
[1772771707293,10.167,88.511,88.461,5.51595211]
[1772771707601,8.88356087,88.51,88.461,5.51595211]
[1772771707799,8.88356087,88.509,88.461,5.51595211]
[1772771708098,2.97169548,88.49,88.434,5.51580949]
[1772771709203,2.97169548,88.5,88.441,5.51320721]
[1772771709404,10.17,88.486,88.441,5.51320721]
[1772771711001,10.171,88.478,88.43,2.97169548]
[1772771711803,10.171,88.478,88.43,8.48475547]
[1772771712004,10.17,88.487,88.433,5.51305999]
[1772771712204,2.97169548,88.5,88.441,5.51305999]
[1772771712400,8.88474293,88.499,88.441,5.51305999]
[1772771712600,10.17,88.49,88.442,10.175]
[1772771712802,8.88474293,88.489,88.442,15.68837717]
[1772771713007,8.88474293,88.488,88.442,15.68837717]
[1772771713214,8.88474293,88.487,88.442,15.68837717]
[1772771713414,8.88474293,88.489,88.442,15.68837717]
[1772771713613,8.88474293,88.488,88.442,15.68837717]
[1772771713816,8.88474293,88.487,88.442,15.68837717]
[1772771714115,2.97169548,88.49,88.443,5.52255366]
[1772771714116,8.88474293,88.489,88.443,5.52255366]
[1772771714317,2.97169548,88.5,88.443,5.52255366]
[1772771714610,10.17,88.488,88.443,5.52255366]
[1772771715909,8.88474293,88.487,88.443,5.52255366]
[1772771716414,10.17,88.488,88.443,5.52255366]
[1772771716812,10.17,88.488,88.445,5.52118766]
[1772771720414,10.171,88.481,88.431,5.52588201]
[1772771720616,8.88797179,88.486,88.435,5.52588201]
[1772771720918,8.88797179,88.485,88.435,5.52588201]
[1772771721117,2.97169548,88.49,88.435,5.52588201]
[1772771721314,8.89541443,88.489,88.435,5.52588201]
[1772771721508,2.97169548,88.49,88.435,5.52588201]
[1772771721509,8.89541443,88.488,88.435,5.52588201]
[1772771721708,8.89541443,88.487,88.435,5.52588201]
[1772771721911,8.89541443,88.486,88.435,5.52588201]
[1772771722116,2.97169548,88.49,88.435,5.52588201]
[1772771722418,19.06851992,88.489,88.439,5.52174149]
[1772771722614,8.89851992,88.488,88.439,5.52174149]
[1772771722917,8.89851992,88.487,88.439,5.52174149]
[1772771723117,8.89851992,88.486,88.439,5.52174149]
[1772771723414,8.89851992,88.485,88.439,5.52174149]
[1772771723618,8.89851992,88.484,88.439,5.52174149]
[1772771723821,8.89851992,88.483,88.439,5.52174149]
[1772771724019,8.90357593,88.482,88.441,5.52174149]
[1772771724219,10.17,88.489,88.441,5.52174149]
[1772771724220,8.90357593,88.481,88.441,5.52174149]
[1772771724419,8.90357593,88.48,88.441,5.52174149]
[1772771724621,10.169,88.499,88.45,5.52107603]
[1772771724820,2.97169548,88.49,88.436,5.52107603]
[1772771725021,2.97169548,88.48,88.436,5.52107603]
[1772771725217,8.90805491,88.479,88.436,5.52107603]
[1772771725421,2.97169548,88.48,88.436,5.52107603]
[1772771725621,8.90805988,88.479,88.436,5.52107603]
[1772771725821,2.97169548,88.48,88.436,5.52107603]
[1772771726022,8.9080605,88.479,88.436,5.52107603]
[1772771726224,8.91055042,88.478,88.436,5.52107603]
[1772771726418,10.171,88.479,88.436,5.52107603]
[1772771726624,8.91055105,88.478,88.436,5.52107603]
[1772771726825,2.97169548,88.48,88.436,5.52107603]
[1772771727025,8.91055105,88.479,88.436,5.52107603]
[1772771727324,8.91055105,88.478,88.436,5.52107603]
[1772771727520,2.97169548,88.49,88.436,5.52107603]
[1772771727721,8.9106387,88.489,88.436,5.52107603]
[1772771727921,8.9106387,88.488,88.436,5.52107603]
[1772771728221,8.9106387,88.487,88.436,5.52107603]
[1772771728422,10.17,88.485,88.438,5.51869487]
[1772771728624,8.9106387,88.484,88.438,5.51869487]
[1772771728825,8.9106387,88.483,88.438,5.51869487]
[1772771729024,8.9106387,88.482,88.438,5.51869487]
[1772771729225,8.9106387,88.481,88.438,5.51869487]
[1772771729426,8.9106387,88.48,88.438,5.51869487]
[1772771729623,8.9106387,88.479,88.438,5.51869487]
[1772771729825,8.9106387,88.478,88.438,5.51869487]
[1772771730026,10.171,88.481,88.438,5.51869487]
[1772771730224,8.91093671,88.48,88.438,5.51869487]
[1772771730424,8.91093671,88.479,88.438,5.51869487]
[1772771730725,8.91093671,88.478,88.438,5.51869487]
[1772771730918,10.171,88.481,88.438,5.51869487]
[1772771731121,10.171,88.479,88.438,5.51869487]
[1772771731318,8.91065825,88.478,88.438,5.51869487]
[1772771731629,10.171,88.479,88.438,5.51869487]
[1772771731831,10.172,88.474,88.438,5.51869487]
[1772771732626,2.97169548,88.47,88.421,5.51861642]
[1772771732826,2.97169548,88.46,88.401,5.51861642]
[1772771733227,10.174,88.451,88.401,5.51861642]
[1772771733427,2.97169548,88.45,88.401,5.51861642]
[1772771733921,2.97169548,88.45,88.402,5.51861642]
[1772771734129,10.174,88.451,88.402,5.51861642]
[1772771734130,2.97169548,88.46,88.402,5.51861642]
[1772771734425,8.90412719,88.459,88.402,5.51861642]
[1772771734631,8.90412719,88.458,88.402,5.51861642]
[1772771734826,8.90412719,88.457,88.402,5.51861642]
[1772771735032,8.90412719,88.456,88.402,5.51861642]
[1772771735229,8.90412719,88.455,88.402,5.51861642]
[1772771735530,8.90412719,88.454,88.406,5.50965922]
[1772771735725,8.90412719,88.453,88.406,5.50965922]
[1772771735929,2.97169548,88.46,88.406,5.50965922]
[1772771736124,8.90621761,88.459,88.406,5.50965922]
[1772771736325,8.90621761,88.458,88.406,5.50965922]
[1772771736534,8.90621761,88.457,88.409,5.50741029]
[1772771736728,8.90621761,88.456,88.42,2.97169548]
[1772771736924,2.97169548,88.47,88.421,5.50741029]
[1772771737126,8.90614876,88.469,88.421,5.50741029]
[1772771737322,2.97169548,88.47,88.421,5.50741029]
[1772771737323,8.90614876,88.468,88.421,5.50741029]
[1772771737527,2.97169548,88.47,88.421,5.50741029]
[1772771737528,8.90614876,88.467,88.421,5.50741029]
[1772771737730,2.97169548,88.47,88.421,5.50741029]
[1772771737731,8.90614876,88.466,88.421,5.50741029]
[1772771737931,8.90614876,88.465,88.421,5.50741029]
[1772771738125,8.90614876,88.464,88.421,5.50741029]
[1772771738432,8.90614876,88.463,88.425,5.50633744]
[1772771738629,8.90614876,88.462,88.425,5.50633744]
[1772771738831,8.90614876,88.461,88.425,5.50633744]
[1772771739032,8.90614876,88.46,88.425,5.50633744]
[1772771739331,8.90614876,88.459,88.425,5.50633744]
[1772771739534,2.97169548,88.47,88.427,10.177]
[1772771739733,8.90888291,88.469,88.427,10.177]
[1772771740033,2.97169548,88.47,88.427,10.177]
[1772771740034,8.90888291,88.468,88.427,10.177]
[1772771740234,8.90888291,88.467,88.427,10.177]
[1772771740436,8.90888291,88.466,88.427,10.177]
[1772771740635,8.90888291,88.465,88.427,10.177]
[1772771740827,8.90888291,88.464,88.427,10.177]
[1772771741032,8.90888291,88.463,88.427,10.177]
[1772771741232,8.90888291,88.462,88.427,10.177]
[1772771741433,2.97169548,88.45,88.401,5.51063733]
[1772771742237,2.97169548,88.46,88.401,5.51063733]
[1772771742434,10.174,88.453,88.405,5.48141496]
[1772771742635,8.916774,88.452,88.405,5.48141496]
[1772771742835,8.91629438,88.451,88.405,5.48141496]
[1772771743132,8.91562869,88.45,88.406,10.179]
[1772771743337,8.91562869,88.449,88.407,5.48141496]
[1772771743539,10.174,88.453,88.407,5.48141496]
[1772771743738,8.91440275,88.452,88.407,5.48141496]
[1772771743943,8.91440275,88.451,88.407,5.48141496]
[1772771744143,8.91440275,88.45,88.407,5.48141496]
[1772771744333,8.91440275,88.449,88.407,5.48141496]
[1772771744641,8.91440275,88.448,88.407,5.48141496]
[1772771744828,10.174,88.453,88.407,5.48141496]
[1772771745033,8.91283596,88.452,88.407,5.48141496]
[1772771745236,8.91283596,88.451,88.407,5.48141496]
[1772771745539,8.91283596,88.45,88.409,5.48136752]
[1772771745838,2.97169548,88.46,88.409,5.48136752]
[1772771746035,8.91168653,88.459,88.409,5.48136752]
[1772771746238,2.97169548,88.48,88.421,5.48242598]
[1772771746536,27.95803901,88.531,88.421,5.48242598]
[1772771746537,2.97169548,88.47,88.421,5.48242598]
[1772771746842,8.91389361,88.469,88.421,5.48242598]
[1772771747032,8.91389361,88.468,88.421,5.48242598]
[1772771747237,8.91389361,88.467,88.421,5.48242598]
[1772771747437,8.91389361,88.466,88.423,10.177]
[1772771747642,10.172,88.468,88.41,2.97169548]
[1772771747643,8.91389361,88.465,88.424,5.48242598]
[1772771747940,8.91389361,88.464,88.424,5.48242598]
[1772771748140,8.91389361,88.463,88.424,5.48242598]
[1772771748341,2.97169548,88.47,88.424,5.48242598]
[1772771748541,10.173,88.464,88.424,5.48242598]
[1772771748842,8.91399909,88.463,88.424,5.48242598]
[1772771749139,10.173,88.464,88.424,5.48242598]
[1772771749440,8.91493708,88.463,88.424,5.48242598]
[1772771749641,8.91493708,88.462,88.424,5.48242598]
[1772771749840,10.173,88.464,88.424,5.48242598]
[1772771750043,8.9148131,88.463,88.424,5.48242598]
[1772771750337,8.9148131,88.462,88.424,5.48242598]
[1772771750536,8.9148131,88.461,88.424,5.48242598]
[1772771750742,8.9148131,88.46,88.424,5.48242598]
[1772771750944,8.9148131,88.459,88.424,5.48242598]
[1772771751241,8.9148131,88.458,88.424,5.48242598]
[1772771751442,10.173,88.464,88.424,5.48242598]
[1772771751643,8.91588744,88.463,88.424,5.48242598]
[1772771751939,8.91588744,88.462,88.424,5.48242598]
[1772771752241,8.91588744,88.461,88.424,5.48242598]
[1772771752436,8.91588744,88.46,88.424,5.48242598]
[1772771752637,10.174,88.457,88.407,5.57280563]
[1772771752840,8.91588744,88.456,88.407,5.57280563]
[1772771753040,2.97477846,88.45,88.407,5.57280563]
[1772771753237,8.91733307,88.449,88.407,5.57280563]
[1772771753439,8.91733307,88.448,88.407,5.57280563]
[1772771753640,8.91733307,88.447,88.407,5.57280563]
[1772771753840,10.174,88.448,88.407,5.57280563]
[1772771754040,8.91687621,88.447,88.407,5.57280563]
[1772771754240,8.91687621,88.446,88.407,5.57280563]
[1772771754440,10.174,88.448,88.407,5.57280563]
[1772771754640,8.91625167,88.447,88.407,5.57280563]
[1772771754841,8.91625167,88.446,88.407,5.57280563]
[1772771755040,10.174,88.448,88.407,5.57280563]
[1772771755241,10.54314322,88.467,88.407,5.57280563]
[1772771755242,8.91625167,88.447,88.407,5.57280563]
[1772771755441,10.173,88.458,88.407,5.57280563]
[1772771755642,8.91589593,88.457,88.407,5.57280563]
[1772771755942,10.174,88.455,88.409,5.56717357]
[1772771756141,8.91589593,88.454,88.409,5.56717357]
[1772771756342,8.91589593,88.453,88.409,5.56717357]
[1772771756543,8.91589593,88.452,88.409,5.56717357]
[1772771756742,8.91589593,88.451,88.409,5.56717357]
[1772771757041,8.91589593,88.45,88.409,5.56717357]
[1772771757246,8.91589593,88.449,88.409,5.56717357]
[1772771757442,8.91589593,88.448,88.409,5.56717357]
[1772771757643,2.97477846,88.45,88.409,5.56717357]
[1772771757844,8.91251493,88.449,88.409,5.56717357]
[1772771758047,8.91251493,88.448,88.409,5.56717357]
[1772771758346,2.97477846,88.45,88.409,5.56717357]
[1772771758539,8.91129864,88.449,88.409,5.56717357]
[1772771758740,8.91129864,88.448,88.409,5.56717357]
[1772771758944,2.97477846,88.45,88.409,5.56717357]
[1772771759143,8.91223069,88.449,88.409,5.56717357]
[1772771759339,8.91223069,88.448,88.409,5.56717357]
[1772771759543,2.97477846,88.45,88.409,5.56717357]
[1772771759744,8.91319739,88.449,88.409,5.56717357]
[1772771759945,8.91319739,88.448,88.409,5.56717357]
[1772771760137,2.97477846,88.45,88.409,5.56717357]
[1772771760346,8.91362567,88.449,88.409,5.56717357]
[1772771760648,8.91362567,88.448,88.409,5.56717357]
[1772771760946,2.97477846,88.45,88.409,5.56717357]
[1772771761146,8.91413382,88.449,88.409,5.56717357]
[1772771761348,8.91413382,88.448,88.409,5.56717357]
[1772771761547,2.97477846,88.45,88.409,5.56717357]
[1772771761851,8.91523739,88.449,88.409,5.56717357]
[1772771762049,8.91523739,88.448,88.409,5.56717357]
[1772771762350,2.97477846,88.44,88.397,5.57866723]
[1772771763037,10.176,88.438,88.389,10.181]
[1772771763238,8.91424124,88.437,88.389,10.181]
[1772771763444,2.97477846,88.43,88.389,10.181]
[1772771763645,8.91424124,88.429,88.389,15.75966723]
[1772771763841,8.91424124,88.428,88.389,15.75966723]
[1772771764045,2.97477846,88.43,88.389,5.57866723]
[1772771764046,8.91424124,88.427,88.389,5.57866723]
[1772771764249,2.97477846,88.43,88.389,5.57866723]
[1772771764250,8.91424124,88.426,88.389,5.57866723]
[1772771764545,8.91424124,88.425,88.389,5.57866723]
[1772771764749,8.91424124,88.424,88.389,5.57866723]
[1772771764950,2.97477846,88.45,88.394,5.59432504]
[1772771765250,8.91006701,88.449,88.394,5.59432504]
[1772771765451,8.91006701,88.448,88.394,5.59432504]
[1772771765647,8.91006701,88.447,88.394,5.59432504]
[1772771765848,8.91006701,88.446,88.394,5.59432504]
[1772771766049,8.91006701,88.445,88.394,5.59432504]
[1772771766251,8.91006701,88.444,88.394,5.59432504]
[1772771766551,8.91006701,88.443,88.396,5.60677202]
[1772771766850,8.91006701,88.442,88.396,5.60677202]
[1772771767048,10.175,88.44,88.396,5.60677202]
[1772771767255,8.91006701,88.439,88.396,5.60677202]
[1772771767550,8.91006701,88.438,88.396,5.60677202]
[1772771767752,8.91006701,88.437,88.396,5.60677202]
[1772771767950,8.91006701,88.436,88.396,5.60677202]
[1772771768149,8.91006701,88.435,88.396,5.60677202]
[1772771768350,8.91006701,88.434,88.396,5.60677202]
[1772771768550,8.91006701,88.433,88.396,5.60677202]
[1772771768750,8.91006701,88.432,88.396,5.60677202]
[1772771768945,8.91006701,88.431,88.396,5.60677202]
[1772771769148,8.91006701,88.43,88.396,5.60677202]
[1772771769356,13.14977846,88.44,88.396,5.60677202]
[1772771769548,10.176,88.438,88.396,5.60677202]
[1772771769750,8.9049161,88.437,88.396,5.60677202]
[1772771769950,8.9049161,88.436,88.396,5.60677202]
[1772771770151,8.9049161,88.435,88.396,5.60677202]
[1772771770352,2.97477846,88.43,88.396,5.60677202]
[1772771771249,8.91540932,88.437,88.396,5.60677202]
[1772771771553,2.97477846,88.44,88.396,5.60677202]
[1772771771757,8.91536963,88.439,88.396,5.60677202]
[1772771772055,8.91536963,88.438,88.396,5.60677202]
[1772771772354,2.97477846,88.44,88.396,5.60677202]
[1772771772355,8.91536963,88.437,88.398,10.18]
[1772771772651,8.91536963,88.436,88.398,10.18]
[1772771772955,8.91536963,88.435,88.398,10.18]
[1772771773154,8.91690459,88.434,88.398,10.18]
[1772771773354,2.97477846,88.44,88.398,10.18]
[1772771773554,8.91671608,88.439,88.398,10.18]
[1772771773756,8.91671608,88.438,88.398,10.18]
[1772771774057,8.91671608,88.437,88.398,10.18]
[1772771774260,2.97477846,88.44,88.396,5.60677202]
[1772771774261,8.91671608,88.436,88.396,5.60677202]
[1772771774450,8.91671608,88.435,88.396,5.60677202]
[1772771774650,8.91671608,88.434,88.396,5.60677202]
[1772771774850,2.97477846,88.44,88.396,5.60677202]
[1772771775050,8.91816587,88.439,88.396,5.60677202]
[1772771775253,8.91816587,88.438,88.396,5.60677202]
[1772771775451,8.91816587,88.437,88.396,5.60677202]
[1772771775654,8.91816587,88.436,88.396,5.60677202]
[1772771775956,8.91816587,88.435,88.396,5.60677202]
[1772771776156,8.91816587,88.434,88.396,5.60677202]
[1772771776356,8.91816587,88.433,88.396,15.78677202]
[1772771776656,8.91816587,88.432,88.397,5.57287657]
[1772771776865,2.97477846,88.44,88.397,5.57287657]
[1772771777158,8.92199926,88.439,88.397,5.57287657]
[1772771777350,8.92199926,88.438,88.397,5.57287657]
[1772771777554,8.92199926,88.437,88.397,5.57287657]
[1772771777755,8.92199926,88.436,88.397,5.57287657]
[1772771777956,8.92199926,88.435,88.397,5.57287657]
[1772771778151,8.92199926,88.434,88.397,5.57287657]
[1772771778456,8.92199926,88.433,88.397,5.57287657]
[1772771778657,8.92199926,88.432,88.397,5.57287657]
[1772771778960,2.97477846,88.42,88.371,5.5723701]
[1772771780052,2.97477846,88.42,88.373,5.5723701]
[1772771780763,20.346,88.465,88.377,5.55120112]
[1772771780764,2.97477846,88.43,88.377,5.55120112]
[1772771780964,8.92110021,88.429,88.381,5.55120112]
[1772771781159,8.92110021,88.428,88.381,5.55120112]
[1772771781458,8.92110021,88.427,88.381,5.55120112]
[1772771781659,8.92110021,88.426,88.381,5.55120112]
[1772771781963,2.97477846,88.42,88.381,5.55120112]
[1772771782761,2.97477846,88.43,88.381,5.55120112]
[1772771783060,8.91851064,88.429,88.386,5.55575182]
[1772771783361,8.91851064,88.428,88.386,5.55575182]
[1772771783662,8.91851064,88.427,88.386,5.55575182]
[1772771783861,8.91851064,88.426,88.386,5.55575182]
[1772771784161,8.91851064,88.425,88.386,5.55575182]
[1772771784365,8.91851064,88.424,88.387,10.181]
[1772771784559,2.97477846,88.44,88.388,5.55829238]
[1772771784758,8.91824528,88.439,88.388,5.55829238]
[1772771784964,2.97477846,88.43,88.388,5.55829238]
[1772771785164,8.91824528,88.429,88.388,5.55829238]
[1772771785364,8.91824528,88.428,88.388,5.55829238]
[1772771785566,8.91824528,88.427,88.388,5.55829238]
[1772771785763,8.91824528,88.426,88.388,5.55829238]
[1772771785966,8.91824528,88.425,88.388,5.55829238]
[1772771786264,8.91824528,88.424,88.388,5.55829238]
[1772771786465,2.97477846,88.43,88.388,5.55829238]
[1772771786666,8.91861402,88.429,88.388,5.55829238]
[1772771786865,8.91861402,88.428,88.388,5.55829238]
[1772771787066,8.91861402,88.427,88.388,5.55829238]
[1772771787365,8.91861402,88.426,88.388,5.55829238]
[1772771787564,8.91861402,88.425,88.388,5.55829238]
[1772771787765,8.91861402,88.424,88.388,5.55829238]
[1772771788065,8.91861402,88.423,88.388,5.55829238]
[1772771788366,2.97477846,88.43,88.388,5.55829238]
[1772771788661,8.91791995,88.429,88.388,5.55829238]
[1772771788864,8.91791995,88.428,88.388,5.55829238]
[1772771789065,8.91791995,88.427,88.388,5.55829238]
[1772771789365,8.91791995,88.426,88.388,5.55829238]
[1772771789565,8.91791995,88.425,88.388,5.55829238]
[1772771789866,8.91791995,88.424,88.388,5.55829238]
[1772771790068,8.91791995,88.423,88.388,5.55829238]
[1772771790266,8.91791995,88.422,88.388,5.55829238]
[1772771790468,2.97477846,88.43,88.388,5.55829238]
[1772771790668,8.91716623,88.429,88.388,5.55829238]
[1772771790966,8.91716623,88.428,88.388,5.55829238]
[1772771791165,19.09416623,88.427,88.388,5.55829238]
[1772771791360,8.91716623,88.426,88.388,5.55829238]
[1772771791561,8.91716623,88.425,88.388,5.55829238]
[1772771791872,8.91716623,88.424,88.388,5.55829238]
[1772771792063,8.91716623,88.423,88.388,5.55829238]
[1772771792259,8.91716623,88.422,88.388,5.55829238]
[1772771792465,8.91716623,88.421,88.388,5.55829238]
[1772771792767,10.177,88.427,88.388,5.55829238]
[1772771793068,2.97477846,88.42,88.371,5.54936612]
[1772771793267,2.97477846,88.43,88.371,5.54936612]
[1772771793467,8.92234294,88.429,88.371,5.54936612]
[1772771793667,8.92234294,88.428,88.371,5.54936612]
[1772771793868,8.92234294,88.427,88.371,5.54936612]
[1772771794169,8.92234294,88.426,88.382,5.54936612]
[1772771794467,8.92234294,88.425,88.382,5.54936612]
[1772771794666,8.92234294,88.424,88.382,5.54936612]
[1772771794866,8.92234294,88.423,88.382,5.54936612]
[1772771795067,8.92234294,88.422,88.382,5.54936612]
[1772771795268,8.92234294,88.421,88.382,5.54936612]
[1772771795466,8.92234294,88.42,88.382,5.54936612]
[1772771795766,8.92234294,88.419,88.382,5.54936612]
[1772771795967,10.177,88.429,88.382,5.54936612]
[1772771796168,8.9285249,88.428,88.382,5.54936612]
[1772771796469,8.9285249,88.427,88.382,5.54936612]
[1772771796669,8.9285249,88.426,88.382,5.54936612]
[1772771796870,8.9285249,88.425,88.382,5.54936612]
[1772771797069,8.9285249,88.424,88.382,5.54936612]
[1772771797267,8.9285249,88.423,88.382,5.54936612]
[1772771797466,8.9285249,88.422,88.382,5.54936612]
[1772771797771,2.97477846,88.42,88.373,5.54272189]
[1772771798069,8.9285249,88.419,88.373,5.54272189]
[1772771798268,8.9285249,88.418,88.373,5.54272189]
[1772771798470,8.9285249,88.417,88.373,5.54272189]
[1772771798665,8.9285249,88.416,88.373,5.54272189]
[1772771798869,8.9285249,88.415,88.373,5.54272189]
[1772771799069,10.178,88.418,88.373,5.54272189]
[1772771799265,8.9389883,88.417,88.373,5.54272189]
[1772771799472,8.9389883,88.416,88.373,5.54272189]
[1772771799767,10.179,88.41,88.373,5.54272189]
[1772771800570,2.97477846,88.4,88.299,5.52929582]
[1772771800872,9.43228453,88.43,88.298,20.384]